[Event "Titled Tuesday Blitz April 12 Early 2022"]
[White "Allahverdiyeva, Ayan"]
[Black "Yang, Kaiqi"]
[WhiteFideId "13412590"]
[BlackFideId "8604398"]
[WhiteElo "1910"]
[BlackElo "2373"]
[Result "0-1"]
[Round "01"]
[TimeControl "180+1"]
[Date "2022.04.13"]
[WhiteClock "0:00:01"]
[BlackClock "0:01:10"]

1. e4 {[%clk 0:03:00]}  e6 {[%clk 0:02:59]} 2. d4 {[%clk 0:02:58]}  d5 {[%clk 0:02:59]} 3. Nd2 {[%clk 0:02:55]}  Be7 {[%clk 0:02:57]} 4. Bd3 {[%clk 0:02:47]}  c5 {[%clk 0:02:56]} 5. c3 {[%clk 0:02:43]}  cxd4 {[%clk 0:02:54]} 6. cxd4 {[%clk 0:02:42]}  dxe4 {[%clk 0:02:53]} 7. Nxe4 {[%clk 0:02:41]}  Nc6 {[%clk 0:02:53]} 8. Nf3 {[%clk 0:02:41]}  Nf6 {[%clk 0:02:51]} 9. O-O {[%clk 0:02:37]}  O-O {[%clk 0:02:50]} 10. Nc3 {[%clk 0:02:14]}  b6 {[%clk 0:02:38]} 11. a3 {[%clk 0:02:06]}  Bb7 {[%clk 0:02:38]} 12. Bc2 {[%clk 0:02:06]}  Re8 {[%clk 0:02:26]} 13. Re1 {[%clk 0:02:06]}  Bf8 {[%clk 0:02:18]} 14. Qd3 {[%clk 0:01:57]}  g6 {[%clk 0:02:17]} 15. Bg5 {[%clk 0:01:56]}  Bg7 {[%clk 0:02:16]} 16. Ne4 {[%clk 0:01:42]}  h6 {[%clk 0:02:11]} 17. Nxf6+ {[%clk 0:01:42]}  Bxf6 {[%clk 0:02:11]} 18. Bxh6 {[%clk 0:01:42]}  Nxd4 {[%clk 0:02:11]} 19. Nxd4 {[%clk 0:01:25]}  Qxd4 {[%clk 0:02:11]} 20. Qg3 {[%clk 0:01:25]}  Qh4 {[%clk 0:01:54]} 21. Qxh4 {[%clk 0:01:10]}  Bxh4 {[%clk 0:01:53]} 22. Bf4 {[%clk 0:01:03]}  Rac8 {[%clk 0:01:49]} 23. Rac1 {[%clk 0:01:01]}  Bf6 {[%clk 0:01:43]} 24. Ba4 {[%clk 0:00:46]}  Red8 {[%clk 0:01:30]} 25. Rxc8 {[%clk 0:00:17]}  Rxc8 {[%clk 0:01:30]} 26. Bc1 {[%clk 0:00:15]}  Bd5 {[%clk 0:01:16]} 27. Rd1 {[%clk 0:00:14]}  a6 {[%clk 0:01:10]} 28. Re1 {[%clk 0:00:01]}  b5 {[%clk 0:01:10]} 0-1


[Site "https://www.chess.com"]

[Event "Titled Tuesday Blitz April 12 Early 2022"]
[White "Ansh M Shah"]
[Black "Aitbayev, Aslan"]
[WhiteFideId "25033379"]
[BlackFideId "13704613"]
[WhiteElo "1819"]
[BlackElo "2385"]
[Result "0-1"]
[Round "01"]
[TimeControl "180+1"]
[Date "2022.04.13"]
[WhiteClock "0:00:02"]
[BlackClock "0:00:59"]

1. d4 {[%clk 0:02:57]}  d6 {[%clk 0:03:00]} 2. c4 {[%clk 0:02:53]}  g6 {[%clk 0:03:00]} 3. h4 {[%clk 0:02:48]}  Nf6 {[%clk 0:03:00]} 4. Nc3 {[%clk 0:02:48]}  e5 {[%clk 0:02:57]} 5. d5 {[%clk 0:02:47]}  a5 {[%clk 0:02:48]} 6. e4 {[%clk 0:02:47]}  Na6 {[%clk 0:02:47]} 7. Be2 {[%clk 0:02:47]}  Nc5 {[%clk 0:02:47]} 8. Qc2 {[%clk 0:02:47]}  Bg7 {[%clk 0:02:32]} 9. h5 {[%clk 0:02:47]}  Nxh5 {[%clk 0:02:31]} 10. Bxh5 {[%clk 0:02:46]}  gxh5 {[%clk 0:02:32]} 11. Rxh5 {[%clk 0:02:45]}  Qf6 {[%clk 0:02:24]} 12. Be3 {[%clk 0:02:30]}  O-O {[%clk 0:02:16]} 13. Rg5 {[%clk 0:00:34]}  Kh8 {[%clk 0:02:12]} 14. Rg3 {[%clk 0:00:34]}  Bh6 {[%clk 0:02:07]} 15. Bxh6 {[%clk 0:00:31]}  Qxh6 {[%clk 0:02:08]} 16. Qd2 {[%clk 0:00:29]}  Qxd2+ {[%clk 0:01:54]} 17. Kxd2 {[%clk 0:00:30]}  f5 {[%clk 0:01:55]} 18. f3 {[%clk 0:00:18]}  Bd7 {[%clk 0:01:34]} 19. Nh3 {[%clk 0:00:16]}  f4 {[%clk 0:01:31]} 20. Rg5 {[%clk 0:00:16]}  Rg8 {[%clk 0:01:32]} 21. Rg1 {[%clk 0:00:03]}  Rxg5 {[%clk 0:01:24]} 22. Nxg5 {[%clk 0:00:04]}  Rg8 {[%clk 0:01:25]} 23. Nf7+ {[%clk 0:00:02]}  Kg7 {[%clk 0:01:25]} 24. Ng5 {[%clk 0:00:02]}  Kh6 {[%clk 0:01:22]} 25. Ne6 {[%clk 0:00:02]}  Nxe6 {[%clk 0:01:17]} 26. dxe6 {[%clk 0:00:03]}  Bxe6 {[%clk 0:01:18]} 27. Nd5 {[%clk 0:00:03]}  c6 {[%clk 0:01:17]} 28. Nc3 {[%clk 0:00:02]}  Bxc4 {[%clk 0:01:16]} 29. b3 {[%clk 0:00:02]}  Be6 {[%clk 0:01:15]} 30. Ke2 {[%clk 0:00:02]}  Rg6 {[%clk 0:01:13]} 31. Kf2 {[%clk 0:00:03]}  Kg7 {[%clk 0:01:11]} 32. Rd1 {[%clk 0:00:03]}  Bf7 {[%clk 0:01:11]} 33. Na4 {[%clk 0:00:03]}  Kf8 {[%clk 0:01:10]} 34. Nb6 {[%clk 0:00:03]}  Ke7 {[%clk 0:01:10]} 35. Nc8+ {[%clk 0:00:03]}  Kd7 {[%clk 0:01:11]} 36. Nb6+ {[%clk 0:00:03]}  Kc7 {[%clk 0:01:09]} 37. Na4 {[%clk 0:00:04]}  b5 {[%clk 0:01:06]} 38. Nc3 {[%clk 0:00:04]}  b4 {[%clk 0:01:06]} 39. Na4 {[%clk 0:00:04]}  c5 {[%clk 0:01:05]} 40. Nb2 {[%clk 0:00:03]}  Rg8 {[%clk 0:01:03]} 41. Rh1 {[%clk 0:00:03]}  Rg7 {[%clk 0:01:03]} 42. Nd1 {[%clk 0:00:03]}  a4 {[%clk 0:01:03]} 43. bxa4 {[%clk 0:00:03]}  Bxa2 {[%clk 0:01:03]} 44. Nb2 {[%clk 0:00:03]}  Kb6 {[%clk 0:01:00]} 45. Ra1 {[%clk 0:00:02]}  Be6 {[%clk 0:00:59]} 46. a5+ {[%clk 0:00:02]}  Kb5 {[%clk 0:01:00]} 47. a6 {[%clk 0:00:02]}  Ra7 {[%clk 0:01:00]} 48. Nd3 {[%clk 0:00:01]}  Rxa6 {[%clk 0:01:00]} 49. Rxa6 {[%clk 0:00:02]}  Kxa6 {[%clk 0:01:01]} 50. g3 {[%clk 0:00:02]}  fxg3+ {[%clk 0:01:01]} 51. Kxg3 {[%clk 0:00:03]}  b3 {[%clk 0:01:00]} 52. f4 {[%clk 0:00:04]}  c4 {[%clk 0:01:00]} 53. Nb2 {[%clk 0:00:01]}  c3 {[%clk 0:00:59]} 54. Na4 {[%clk 0:00:01]}  c2 {[%clk 0:00:59]} 55. fxe5 {[%clk 0:00:01]}  c1=Q {[%clk 0:00:58]} 56. exd6 {[%clk 0:00:02]}  Qe3+ {[%clk 0:00:58]} 57. Kh4 {[%clk 0:00:01]}  Qf4+ {[%clk 0:00:58]} 58. Kh5 {[%clk 0:00:01]}  Qg4+ {[%clk 0:00:58]} 59. Kh6 {[%clk 0:00:02]}  Qg6# {[%clk 0:00:59]} 0-1


[Site "https://www.chess.com"]

[Event "Titled Tuesday Blitz April 12 Early 2022"]
[White "Atakhan, Abtin"]
[Black "Melikhov, Evgeny V."]
[WhiteFideId "22502203"]
[BlackFideId "4122046"]
[WhiteElo "2094"]
[BlackElo "1931"]
[Result "1-0"]
[Round "01"]
[TimeControl "180+1"]
[Date "2022.04.13"]
[WhiteClock "0:00:07"]
[BlackClock "0:00:11"]

1. c4 {[%clk 0:02:59]}  e6 {[%clk 0:02:56]} 2. g3 {[%clk 0:02:59]}  d5 {[%clk 0:02:56]} 3. Bg2 {[%clk 0:03:00]}  c5 {[%clk 0:02:55]} 4. Nf3 {[%clk 0:02:59]}  Nc6 {[%clk 0:02:55]} 5. O-O {[%clk 0:02:59]}  d4 {[%clk 0:02:56]} 6. e3 {[%clk 0:02:59]}  e5 {[%clk 0:02:56]} 7. exd4 {[%clk 0:02:59]}  exd4 {[%clk 0:02:56]} 8. Re1+ {[%clk 0:02:55]}  Be7 {[%clk 0:02:55]} 9. d3 {[%clk 0:02:55]}  Nf6 {[%clk 0:02:52]} 10. Bf4 {[%clk 0:02:48]}  O-O {[%clk 0:02:51]} 11. Ne5 {[%clk 0:02:49]}  Nxe5 {[%clk 0:02:45]} 12. Bxe5 {[%clk 0:02:50]}  Bd6 {[%clk 0:02:45]} 13. Nd2 {[%clk 0:02:46]}  Bxe5 {[%clk 0:02:40]} 14. Rxe5 {[%clk 0:02:47]}  Qc7 {[%clk 0:02:40]} 15. Re1 {[%clk 0:02:44]}  Rb8 {[%clk 0:02:39]} 16. h3 {[%clk 0:02:39]}  b6 {[%clk 0:02:38]} 17. Qe2 {[%clk 0:02:29]}  Bb7 {[%clk 0:02:37]} 18. Bxb7 {[%clk 0:02:26]}  Qxb7 {[%clk 0:02:34]} 19. a3 {[%clk 0:02:16]}  Rfe8 {[%clk 0:02:32]} 20. Qf1 {[%clk 0:02:15]}  a5 {[%clk 0:02:25]} 21. Rab1 {[%clk 0:02:13]}  Rxe1 {[%clk 0:02:23]} 22. Rxe1 {[%clk 0:02:10]}  Re8 {[%clk 0:02:23]} 23. Rxe8+ {[%clk 0:02:10]}  Nxe8 {[%clk 0:02:23]} 24. Ne4 {[%clk 0:02:09]}  f5 {[%clk 0:02:19]} 25. Ng5 {[%clk 0:02:09]}  h6 {[%clk 0:02:14]} 26. Qe2 {[%clk 0:02:09]}  Qd7 {[%clk 0:02:07]} 27. Nf3 {[%clk 0:01:46]}  Nd6 {[%clk 0:01:52]} 28. Qe5 {[%clk 0:01:43]}  Kf7 {[%clk 0:01:46]} 29. Qd5+ {[%clk 0:01:40]}  Qe6 {[%clk 0:01:43]} 30. Qc6 {[%clk 0:01:13]}  Ne8 {[%clk 0:01:43]} 31. Qb7+ {[%clk 0:01:10]}  Kf8 {[%clk 0:01:38]} 32. Kf1 {[%clk 0:01:07]}  Nf6 {[%clk 0:01:27]} 33. Nh4 {[%clk 0:01:06]}  Nd7 {[%clk 0:01:23]} 34. Qc8+ {[%clk 0:00:41]}  Kf7 {[%clk 0:01:18]} 35. Qc7 {[%clk 0:00:40]}  Kf8 {[%clk 0:01:08]} 36. Nf3 {[%clk 0:00:34]}  g5 {[%clk 0:01:02]} 37. Nd2 {[%clk 0:00:31]}  Nf6 {[%clk 0:00:56]} 38. Qd8+ {[%clk 0:00:29]}  Kf7 {[%clk 0:00:55]} 39. Nf3 {[%clk 0:00:28]}  Ne8 {[%clk 0:00:51]} 40. Qb8 {[%clk 0:00:21]}  Kf6 {[%clk 0:00:47]} 41. Qd8+ {[%clk 0:00:19]}  Kf7 {[%clk 0:00:47]} 42. Qb8 {[%clk 0:00:20]}  Kf6 {[%clk 0:00:46]} 43. h4 {[%clk 0:00:17]}  g4 {[%clk 0:00:39]} 44. Nd2 {[%clk 0:00:18]}  Kf7 {[%clk 0:00:31]} 45. Nb3 {[%clk 0:00:16]}  Qc6 {[%clk 0:00:27]} 46. Kg1 {[%clk 0:00:11]}  Nf6 {[%clk 0:00:22]} 47. Nc1 {[%clk 0:00:11]}  Nd7 {[%clk 0:00:21]} 48. Qf4 {[%clk 0:00:10]}  Qf3 {[%clk 0:00:18]} 49. Qxf3 {[%clk 0:00:08]}  gxf3 {[%clk 0:00:18]} 50. Kf1 {[%clk 0:00:07]}  Ne5 {[%clk 0:00:18]} 51. Ke1 {[%clk 0:00:07]}  Ke6 {[%clk 0:00:16]} 52. Kd2 {[%clk 0:00:06]}  Kd6 {[%clk 0:00:16]} 53. Nb3 {[%clk 0:00:06]}  Ke6 {[%clk 0:00:15]} 54. Kc2 {[%clk 0:00:06]}  Ng4 {[%clk 0:00:15]} 55. Nd2 {[%clk 0:00:07]}  Nxf2 {[%clk 0:00:15]} 56. Nxf3 {[%clk 0:00:08]}  Nh1 {[%clk 0:00:15]} 57. b4 {[%clk 0:00:06]}  axb4 {[%clk 0:00:13]} 58. axb4 {[%clk 0:00:07]}  Nxg3 {[%clk 0:00:13]} 59. b5 {[%clk 0:00:07]}  f4 {[%clk 0:00:13]} 60. Kd2 {[%clk 0:00:06]}  Kf5 {[%clk 0:00:12]} 61. Ke1 {[%clk 0:00:03]}  Kg4 {[%clk 0:00:12]} 62. Kf2 {[%clk 0:00:04]}  Nf5 {[%clk 0:00:12]} 63. Nd2 {[%clk 0:00:04]}  Nxh4 {[%clk 0:00:12]} 64. Ne4 {[%clk 0:00:05]}  Nf5 {[%clk 0:00:12]} 65. Nf6+ {[%clk 0:00:03]}  Kg5 {[%clk 0:00:12]} 66. Nd5 {[%clk 0:00:04]}  Nd6 {[%clk 0:00:07]} 67. Nxb6 {[%clk 0:00:04]}  h5 {[%clk 0:00:07]} 68. Nd7 {[%clk 0:00:04]}  Nb7 {[%clk 0:00:07]} 69. Ne5 {[%clk 0:00:03]}  h4 {[%clk 0:00:07]} 70. Nf3+ {[%clk 0:00:03]}  Kg4 {[%clk 0:00:08]} 71. Ng1 {[%clk 0:00:04]}  h3 {[%clk 0:00:08]} 72. Nf3 {[%clk 0:00:04]}  Nd6 {[%clk 0:00:07]} 73. b6 {[%clk 0:00:04]}  Nb7 {[%clk 0:00:07]} 74. Nh2+ {[%clk 0:00:04]}  Kf5 {[%clk 0:00:07]} 75. Nf3 {[%clk 0:00:03]}  Kg4 {[%clk 0:00:07]} 76. Nh2+ {[%clk 0:00:03]}  Kf5 {[%clk 0:00:08]} 77. Kf3 {[%clk 0:00:04]}  Ke5 {[%clk 0:00:08]} 78. Ng4+ {[%clk 0:00:04]}  Kf5 {[%clk 0:00:08]} 79. Nf2 {[%clk 0:00:05]}  Kg5 {[%clk 0:00:08]} 80. Nxh3+ {[%clk 0:00:05]}  Kf5 {[%clk 0:00:08]} 81. Nxf4 {[%clk 0:00:06]}  Na5 {[%clk 0:00:09]} 82. Nd5 {[%clk 0:00:06]}  Ke5 {[%clk 0:00:09]} 83. Ke2 {[%clk 0:00:07]}  Kd6 {[%clk 0:00:08]} 84. Kd2 {[%clk 0:00:07]}  Kc6 {[%clk 0:00:09]} 85. Kc2 {[%clk 0:00:07]}  Nb7 {[%clk 0:00:09]} 86. Kb3 {[%clk 0:00:08]}  Nd6 {[%clk 0:00:09]} 87. Ka4 {[%clk 0:00:08]}  Nc8 {[%clk 0:00:09]} 88. Ka5 {[%clk 0:00:07]}  Nd6 {[%clk 0:00:10]} 89. Ka6 {[%clk 0:00:08]}  Nxc4 {[%clk 0:00:10]} 90. dxc4 {[%clk 0:00:07]}  d3 {[%clk 0:00:11]} 91. b7 {[%clk 0:00:07]} 1-0


[Site "https://www.chess.com"]

[Event "Titled Tuesday Blitz April 12 Early 2022"]
[White "Bach, Ngoc Thuy Duong"]
[Black "Shipov, Sergei"]
[WhiteFideId "12408956"]
[BlackFideId "4113624"]
[WhiteElo "1862"]
[BlackElo "2808"]
[Result "1/2-1/2"]
[Round "01"]
[TimeControl "180+1"]
[Date "2022.04.13"]
[WhiteClock "0:00:18"]
[BlackClock "0:00:11"]

1. d4 {[%clk 0:03:00]}  Nf6 {[%clk 0:02:59]} 2. c4 {[%clk 0:03:00]}  c5 {[%clk 0:02:59]} 3. Nc3 {[%clk 0:03:01]}  cxd4 {[%clk 0:02:58]} 4. Qxd4 {[%clk 0:03:02]}  Nc6 {[%clk 0:02:59]} 5. Qd1 {[%clk 0:03:03]}  e6 {[%clk 0:02:58]} 6. Nf3 {[%clk 0:03:03]}  d5 {[%clk 0:02:57]} 7. cxd5 {[%clk 0:03:03]}  exd5 {[%clk 0:02:58]} 8. e3 {[%clk 0:03:03]}  Bc5 {[%clk 0:02:57]} 9. Bd3 {[%clk 0:02:59]}  O-O {[%clk 0:02:56]} 10. O-O {[%clk 0:02:58]}  Bg4 {[%clk 0:02:55]} 11. Be2 {[%clk 0:02:57]}  Qd6 {[%clk 0:02:54]} 12. h3 {[%clk 0:02:57]}  Bh5 {[%clk 0:02:45]} 13. Nd4 {[%clk 0:02:57]}  Bg6 {[%clk 0:02:43]} 14. a3 {[%clk 0:02:38]}  Rad8 {[%clk 0:02:40]} 15. b4 {[%clk 0:02:36]}  Bb6 {[%clk 0:02:34]} 16. Ncb5 {[%clk 0:02:31]}  Qd7 {[%clk 0:02:33]} 17. Bb2 {[%clk 0:02:31]}  Rfe8 {[%clk 0:02:32]} 18. Nf3 {[%clk 0:02:18]}  Ne4 {[%clk 0:02:27]} 19. Nc3 {[%clk 0:02:04]}  Qe6 {[%clk 0:02:20]} 20. Bb5 {[%clk 0:01:23]}  Bh5 {[%clk 0:01:53]} 21. Be2 {[%clk 0:01:15]}  Nxf2 {[%clk 0:01:47]} 22. Rxf2 {[%clk 0:01:10]}  Qxe3 {[%clk 0:01:47]} 23. Qf1 {[%clk 0:01:10]}  d4 {[%clk 0:01:48]} 24. Nd1 {[%clk 0:01:02]}  Qe7 {[%clk 0:01:01]} 25. Bd3 {[%clk 0:01:01]}  Bxf3 {[%clk 0:00:55]} 26. Rxf3 {[%clk 0:01:02]}  Ne5 {[%clk 0:00:55]} 27. Rf2 {[%clk 0:00:48]}  Bc7 {[%clk 0:00:51]} 28. Rd2 {[%clk 0:00:42]}  Qd6 {[%clk 0:00:49]} 29. g3 {[%clk 0:00:19]}  Qd5 {[%clk 0:00:49]} 30. Rf2 {[%clk 0:00:18]}  Nxd3 {[%clk 0:00:42]} 31. Qxd3 {[%clk 0:00:18]}  Re1+ {[%clk 0:00:42]} 32. Rf1 {[%clk 0:00:18]}  Rxf1+ {[%clk 0:00:39]} 33. Kxf1 {[%clk 0:00:19]}  Qh1+ {[%clk 0:00:39]} 34. Ke2 {[%clk 0:00:19]}  Re8+ {[%clk 0:00:33]} 35. Kd2 {[%clk 0:00:19]}  Qg2+ {[%clk 0:00:24]} 36. Kc1 {[%clk 0:00:20]}  Bxg3 {[%clk 0:00:25]} 37. Kb1 {[%clk 0:00:19]}  Be5 {[%clk 0:00:21]} 38. Ka2 {[%clk 0:00:19]}  Rd8 {[%clk 0:00:19]} 39. Rc1 {[%clk 0:00:18]}  h6 {[%clk 0:00:18]} 40. Rc2 {[%clk 0:00:17]}  Qd5+ {[%clk 0:00:17]} 41. Qc4 {[%clk 0:00:17]}  Qd7 {[%clk 0:00:16]} 42. Rd2 {[%clk 0:00:18]}  Qxh3 {[%clk 0:00:15]} 43. Rd3 {[%clk 0:00:17]}  Qf1 {[%clk 0:00:14]} 44. Rxd4 {[%clk 0:00:17]}  Qxc4+ {[%clk 0:00:13]} 45. Rxc4 {[%clk 0:00:17]}  Rd2 {[%clk 0:00:12]} 46. Rc8+ {[%clk 0:00:16]}  Kh7 {[%clk 0:00:12]} 47. Re8 {[%clk 0:00:16]}  Bxb2 {[%clk 0:00:11]} 48. Nxb2 {[%clk 0:00:16]}  g5 {[%clk 0:00:12]} 49. Re7 {[%clk 0:00:16]}  Kg6 {[%clk 0:00:12]} 50. Rxb7 {[%clk 0:00:16]}  g4 {[%clk 0:00:13]} 51. Kb3 {[%clk 0:00:16]}  h5 {[%clk 0:00:13]} 52. Rb8 {[%clk 0:00:16]}  h4 {[%clk 0:00:13]} 53. Rg8+ {[%clk 0:00:16]}  Kf5 {[%clk 0:00:13]} 54. Nc4 {[%clk 0:00:16]}  Rd3+ {[%clk 0:00:13]} 55. Kc2 {[%clk 0:00:16]}  Rf3 {[%clk 0:00:13]} 56. Kd2 {[%clk 0:00:16]}  h3 {[%clk 0:00:13]} 57. Ne3+ {[%clk 0:00:16]}  Ke4 {[%clk 0:00:09]} 58. Rxg4+ {[%clk 0:00:16]}  Rf4 {[%clk 0:00:10]} 59. Rg3 {[%clk 0:00:15]}  h2 {[%clk 0:00:09]} 60. Rh3 {[%clk 0:00:15]}  Rf2+ {[%clk 0:00:09]} 61. Ke1 {[%clk 0:00:15]}  Rf3 {[%clk 0:00:09]} 62. Rh4+ {[%clk 0:00:14]}  Kxe3 {[%clk 0:00:09]} 63. Rxh2 {[%clk 0:00:15]}  Kd4 {[%clk 0:00:09]} 64. Rd2+ {[%clk 0:00:15]}  Kc4 {[%clk 0:00:09]} 65. Rd7 {[%clk 0:00:15]}  Rxa3 {[%clk 0:00:08]} 66. Rxf7 {[%clk 0:00:15]}  Kxb4 {[%clk 0:00:09]} 67. Kd2 {[%clk 0:00:15]}  Ra2+ {[%clk 0:00:07]} 68. Kc1 {[%clk 0:00:16]}  a5 {[%clk 0:00:08]} 69. Kb1 {[%clk 0:00:16]}  Re2 {[%clk 0:00:08]} 70. Rf4+ {[%clk 0:00:16]}  Kb3 {[%clk 0:00:09]} 71. Rf3+ {[%clk 0:00:16]}  Kb4 {[%clk 0:00:09]} 72. Rf4+ {[%clk 0:00:17]}  Kb3 {[%clk 0:00:10]} 73. Rf3+ {[%clk 0:00:17]}  Kb4 {[%clk 0:00:11]} 74. Rf4+ {[%clk 0:00:18]} 1/2-1/2


[Site "https://www.chess.com"]

[Event "Titled Tuesday Blitz April 12 Early 2022"]
[White "Baches Garcia, Guillermo"]
[Black "Bluebaum, Matthias"]
[WhiteFideId "2209764"]
[BlackFideId "24651516"]
[WhiteElo "2507"]
[BlackElo "2550"]
[Result "0-1"]
[Round "01"]
[TimeControl "180+1"]
[Date "2022.04.12"]
[WhiteClock "0:00:11"]
[BlackClock "0:01:50"]

1. e4 {[%clk 0:03:00]}  c6 {[%clk 0:02:58]} 2. d4 {[%clk 0:02:59]}  d5 {[%clk 0:02:59]} 3. exd5 {[%clk 0:02:59]}  cxd5 {[%clk 0:03:00]} 4. Bd3 {[%clk 0:02:59]}  Nc6 {[%clk 0:03:00]} 5. c3 {[%clk 0:02:59]}  Qc7 {[%clk 0:03:01]} 6. h3 {[%clk 0:02:57]}  e6 {[%clk 0:03:01]} 7. Nf3 {[%clk 0:02:52]}  Bd6 {[%clk 0:03:01]} 8. O-O {[%clk 0:02:51]}  Nge7 {[%clk 0:03:02]} 9. Re1 {[%clk 0:02:46]}  O-O {[%clk 0:03:01]} 10. Nbd2 {[%clk 0:02:45]}  Bd7 {[%clk 0:03:00]} 11. Nf1 {[%clk 0:02:34]}  Ng6 {[%clk 0:02:59]} 12. Ne3 {[%clk 0:02:29]}  Rae8 {[%clk 0:02:54]} 13. Ng5 {[%clk 0:02:04]}  Nce7 {[%clk 0:02:50]} 14. Ng4 {[%clk 0:01:46]}  f5 {[%clk 0:02:47]} 15. Ne5 {[%clk 0:01:13]}  Nxe5 {[%clk 0:02:43]} 16. dxe5 {[%clk 0:01:12]}  Bxe5 {[%clk 0:02:44]} 17. Qh5 {[%clk 0:01:08]}  h6 {[%clk 0:02:43]} 18. Nf3 {[%clk 0:01:07]}  Bf6 {[%clk 0:02:34]} 19. Nd4 {[%clk 0:00:47]}  Nc6 {[%clk 0:02:19]} 20. Nb5 {[%clk 0:00:22]}  Qb8 {[%clk 0:02:18]} 21. Qg6 {[%clk 0:00:21]}  Re7 {[%clk 0:02:10]} 22. Nd4 {[%clk 0:00:15]}  Nxd4 {[%clk 0:02:07]} 23. cxd4 {[%clk 0:00:16]}  Be8 {[%clk 0:02:07]} 24. Qg3 {[%clk 0:00:16]}  Qxg3 {[%clk 0:02:07]} 25. fxg3 {[%clk 0:00:17]}  Bxd4+ {[%clk 0:02:08]} 26. Kh2 {[%clk 0:00:18]}  Bc6 {[%clk 0:02:06]} 27. Bf4 {[%clk 0:00:17]}  e5 {[%clk 0:02:06]} 28. Rad1 {[%clk 0:00:16]}  g5 {[%clk 0:02:05]} 29. Bc1 {[%clk 0:00:16]}  Bb6 {[%clk 0:02:03]} 30. b4 {[%clk 0:00:16]}  e4 {[%clk 0:01:58]} 31. Bc2 {[%clk 0:00:16]}  d4 {[%clk 0:01:58]} 32. Bb3+ {[%clk 0:00:16]}  Kh7 {[%clk 0:01:59]} 33. a4 {[%clk 0:00:15]}  a6 {[%clk 0:01:59]} 34. b5 {[%clk 0:00:15]}  axb5 {[%clk 0:01:59]} 35. axb5 {[%clk 0:00:16]}  Bxb5 {[%clk 0:02:00]} 36. Ba3 {[%clk 0:00:17]}  Rfe8 {[%clk 0:01:55]} 37. Bxe7 {[%clk 0:00:17]}  Rxe7 {[%clk 0:01:56]} 38. Rb1 {[%clk 0:00:16]}  Bc6 {[%clk 0:01:55]} 39. Bg8+ {[%clk 0:00:13]}  Kxg8 {[%clk 0:01:54]} 40. Rxb6 {[%clk 0:00:13]}  Rd7 {[%clk 0:01:53]} 41. g4 {[%clk 0:00:13]}  f4 {[%clk 0:01:51]} 42. Ra1 {[%clk 0:00:11]}  d3 {[%clk 0:01:50]} 0-1


[Site "https://www.chess.com"]

[Event "Titled Tuesday Blitz April 12 Early 2022"]
[White "Barp, Alberto"]
[Black "Kostiukov, Alexandr"]
[WhiteFideId "872555"]
[BlackFideId "14108100"]
[WhiteElo "2229"]
[BlackElo "2202"]
[Result "1/2-1/2"]
[Round "01"]
[TimeControl "180+1"]
[Date "2022.04.13"]
[WhiteClock "0:00:15"]
[BlackClock "0:00:05"]

1. d4 {[%clk 0:02:58]}  g6 {[%clk 0:02:56]} 2. Nc3 {[%clk 0:02:52]}  c5 {[%clk 0:02:48]} 3. d5 {[%clk 0:02:46]}  Bg7 {[%clk 0:02:44]} 4. e4 {[%clk 0:02:46]}  a6 {[%clk 0:02:44]} 5. a4 {[%clk 0:02:44]}  d6 {[%clk 0:02:44]} 6. f4 {[%clk 0:02:37]}  Nf6 {[%clk 0:02:44]} 7. Nf3 {[%clk 0:02:34]}  O-O {[%clk 0:02:43]} 8. Bc4 {[%clk 0:02:30]}  e6 {[%clk 0:02:37]} 9. dxe6 {[%clk 0:02:28]}  Bxe6 {[%clk 0:02:26]} 10. Bxe6 {[%clk 0:02:21]}  fxe6 {[%clk 0:02:27]} 11. O-O {[%clk 0:01:57]}  Nc6 {[%clk 0:02:26]} 12. Ng5 {[%clk 0:01:52]}  Qd7 {[%clk 0:02:17]} 13. Be3 {[%clk 0:01:45]}  h6 {[%clk 0:02:10]} 14. Nh3 {[%clk 0:01:39]}  Rad8 {[%clk 0:01:44]} 15. f5 {[%clk 0:01:32]}  exf5 {[%clk 0:01:32]} 16. exf5 {[%clk 0:01:33]}  g5 {[%clk 0:01:29]} 17. Nd5 {[%clk 0:01:24]}  Nxd5 {[%clk 0:01:20]} 18. Qxd5+ {[%clk 0:01:25]}  Qf7 {[%clk 0:01:21]} 19. Rad1 {[%clk 0:01:19]}  Bd4 {[%clk 0:01:15]} 20. Qxf7+ {[%clk 0:01:15]}  Rxf7 {[%clk 0:01:15]} 21. Bxd4 {[%clk 0:01:16]}  Nxd4 {[%clk 0:01:13]} 22. c3 {[%clk 0:01:08]}  Nxf5 {[%clk 0:01:08]} 23. Rfe1 {[%clk 0:01:07]}  Re7 {[%clk 0:00:54]} 24. Rxe7 {[%clk 0:01:00]}  Nxe7 {[%clk 0:00:53]} 25. Nf2 {[%clk 0:01:01]}  d5 {[%clk 0:00:47]} 26. Ne4 {[%clk 0:00:59]}  b6 {[%clk 0:00:44]} 27. a5 {[%clk 0:00:56]}  Nc6 {[%clk 0:00:44]} 28. Rxd5 {[%clk 0:00:43]}  Rxd5 {[%clk 0:00:34]} 29. Nf6+ {[%clk 0:00:43]}  Kf7 {[%clk 0:00:33]} 30. Nxd5 {[%clk 0:00:44]}  b5 {[%clk 0:00:24]} 31. b4 {[%clk 0:00:36]}  cxb4 {[%clk 0:00:15]} 32. cxb4 {[%clk 0:00:37]}  Kg6 {[%clk 0:00:09]} 33. Kf2 {[%clk 0:00:36]}  Kf5 {[%clk 0:00:10]} 34. Ke2 {[%clk 0:00:23]}  Ke5 {[%clk 0:00:09]} 35. Ne3 {[%clk 0:00:22]}  Nxb4 {[%clk 0:00:09]} 36. Ng4+ {[%clk 0:00:23]}  Kf4 {[%clk 0:00:06]} 37. Nxh6 {[%clk 0:00:24]}  Nc6 {[%clk 0:00:06]} 38. g3+ {[%clk 0:00:20]}  Ke5 {[%clk 0:00:06]} 39. Ng4+ {[%clk 0:00:20]}  Ke6 {[%clk 0:00:06]} 40. Kd3 {[%clk 0:00:19]}  Nxa5 {[%clk 0:00:06]} 41. Kd4 {[%clk 0:00:19]}  Nc6+ {[%clk 0:00:06]} 42. Kc5 {[%clk 0:00:20]}  Ne5 {[%clk 0:00:06]} 43. Ne3 {[%clk 0:00:19]}  Nf3 {[%clk 0:00:06]} 44. h3 {[%clk 0:00:19]}  Ng1 {[%clk 0:00:05]} 45. h4 {[%clk 0:00:19]}  gxh4 {[%clk 0:00:06]} 46. gxh4 {[%clk 0:00:20]}  Ke5 {[%clk 0:00:05]} 47. h5 {[%clk 0:00:16]}  Kf6 {[%clk 0:00:05]} 48. Nd5+ {[%clk 0:00:15]}  Kg5 {[%clk 0:00:04]} 49. Nc7 {[%clk 0:00:15]}  Kxh5 {[%clk 0:00:04]} 50. Nxa6 {[%clk 0:00:14]}  Nf3 {[%clk 0:00:05]} 51. Kxb5 {[%clk 0:00:15]} 1/2-1/2


[Site "https://www.chess.com"]